fUSD/lending_fUSD_20240804
["ID","MTS","AMOUNT","RATE_DAILY","PERIOD"]
[334179840,1722812770470,481.9,0.00026986,120]
[334179843,1722812951867,-300.0,9.898e-05,2]
[334179844,1722812951916,-300.0,9.898e-05,2]
[334179845,1722812951963,-7560.50771807,9.899e-05,2]
[334179846,1722812952048,-3763.01794112,9.899e-05,2]
[334179847,1722812952738,-264.46937223,9.899e-05,2]
[334179848,1722812980742,3135.0,0.00027,120]
[334179849,1722813001804,-8127.94845078,9.798e-05,2]
[334179865,1722813031796,-951.94074922,9.798e-05,2]
[334179866,1722813031806,-227.61995131,9.899e-05,2]
[334179867,1722813031816,-574.68891551,9.899e-05,2]
[334179868,1722813031826,-1495.75038446,0.00010421,2]
[334179869,1722813031837,-504.24961554,0.00010421,2]
[334179870,1722813031847,-150.0,0.00010899,2]
[334179871,1722813031856,-36.57492826,0.00010899,2]
[334179872,1722813033941,-263.42507174,0.00010899,2]
[334179873,1722813033951,-1576.57492826,0.000109,2]
[334179874,1722813033968,-4365.69390637,0.000109,2]
[334179875,1722813033978,-236.81038417,0.000109,2]
[334179876,1722813033989,-173.45257639,0.000109,2]
[334179877,1722813033999,-186.60239526,0.000109,2]
[334179878,1722813034008,-343.1705514,0.000109,2]
[334179879,1722813034018,-1945.96593,0.0001091,2]
[334179880,1722813034028,-554.56257,0.0001092,2]
[334179881,1722813034038,-723.75,0.00010984,2]
[334179882,1722813034047,-1795272.48885697,0.00011,2]
[334179883,1722813034059,-309.24154603,0.00011,2]
[334179884,1722813034071,-994.86951933,0.00011,2]
[334179885,1722813034083,-1450.0,0.00011,2]
[334179886,1722813034095,-397.7418011,0.00011,2]
[334179887,1722813034107,-1029.07753147,0.00011,2]
[334179888,1722813034119,-3081.9,0.00011,2]
[334179889,1722813034203,-6392.78316401,0.00011,2]
[334179890,1722813034223,-46218.61985079,0.00011,2]
[334179891,1722813034234,-330236.07876439,0.00011,2]
[334179892,1722813034246,-5041.91788826,0.00011,2]
[334179893,1722813034257,-477.44425764,0.00011,2]
[334179894,1722813034269,-1421.0333,0.00011,2]
[334179895,1722813034280,-380.82981456,0.00011,2]
[334179896,1722813034312,-531.77659901,0.00011,2]
[334179897,1722813034323,-465.65120639,0.00011,2]
[334179898,1722813034335,-8440.40459557,0.00011,2]
[334179910,1722813037752,-4129.08300008,0.00011,2]
[334179919,1722813037828,-1084199.84851592,0.00011,2]
[334179921,1722813037839,-2894.2789726,0.00011,2]
[334179923,1722813037850,-770.18156741,0.00011,2]
[334179925,1722813037861,-268.53628757,0.00011,2]
[334179927,1722813037872,-2034.97917512,0.00011,2]
[334179928,1722813037883,-42571.4152574,0.00011,2]
[334179929,1722813037895,-32560.46879961,0.00011,2]
[334179930,1722813037923,-1919.21378837,0.00011,2]
[334179931,1722813037934,-3146.7938,0.00011,2]
[334179932,1722813037945,-10299.29559822,0.00011,2]
[334179933,1722813037980,-173.09632586,0.000109,2]
[334179934,1722813037992,-114.40268996,0.00011,2]
[334179935,1722813038004,-394.14575585,0.00011,2]
[334179936,1722813038016,-884.28010879,0.00011,2]
[334179937,1722813038048,-827.75998797,0.00011,2]
[334180585,1722813046042,-11282.35319939,0.00011,2]
[334180587,1722813046054,-2886.749998,0.00011,2]
[334180589,1722813046065,-11552.61972475,0.00011,2]
[334180598,1722813046135,-665.03216072,0.00011,2]
[334180609,1722813046233,-718.7499,0.00011,2]
[334180611,1722813046245,-536.66783927,0.00011,2]
[334180613,1722813046256,-264.30000001,0.00011,2]
[334181545,1722813069108,800.0,0.00026986,120]
[334181546,1722813122348,-159.817688,0.00010646,2]
[334181547,1722813122391,-200.0,0.000107,3]
[334181548,1722813122435,-424.122312,0.000108,3]
[334181549,1722813122645,-75.877688,0.000108,3]
[334181550,1722813150601,420.51539144,0.000108,2]
[334181551,1722813150643,357.675035,0.000108,2]
[334181552,1722813172405,1826.19961989,0.000108,2]
[334181553,1722813199532,2855.70894643,9.799e-05,2]
[334181554,1722813199576,768.32635357,9.799e-05,2]
[334181555,1722813201673,227.61995131,0.000108,2]
[334181556,1722813205159,790.44,9.389e-05,2]
[334181557,1722813275396,98018.95552371,0.00027,120]
[334181558,1722813645998,2041.0742,0.000108,2]
[334181559,1722813675813,3114.39428716,0.00027,120]
[334181560,1722813699636,214.54705833,0.000108,2]
[334181561,1722813699679,13.07289298,0.000108,2]
[334181562,1722813712277,786.99,9.189e-05,2]
[334181563,1722813775885,500.0,0.00027,120]
[334181564,1722813785858,500.0,0.00027,120]
[334181565,1722813786647,227.61995131,9.189e-05,2]
[334181566,1722813795655,633.0,0.00027,120]
[334181567,1722813811189,1235.6588,0.000108,2]
[334181568,1722813836935,2145.02540472,0.000108,2]
[334181569,1722813836980,4815.2,0.000108,2]
[334181570,1722813955815,150.0,6.94e-05,2]
[334181571,1722813955837,150.0,6.94e-05,2]
[334181572,1722813955859,150.0,6.94e-05,2]
[334181573,1722813955883,45.79702961,6.94e-05,2]
[334181574,1722814033634,225.52420469,6.94e-05,2]
[334181575,1722814033664,2.09574662,6.94e-05,2]
[334181576,1722814074352,150.0,8.412e-05,2]
[334181577,1722814074377,77.61995131,8.412e-05,2]
[334181578,1722814076120,72.38004869,8.412e-05,2]
[334181579,1722814076146,82.61995131,8.412e-05,2]
[334181580,1722814078573,150.0,8.412e-05,2]
[334181581,1722814078597,150.0,8.412e-05,2]
[334181582,1722814078622,150.0,8.412e-05,2]
[334181585,1722814099833,-500.0,9.911e-05,3]
[334181586,1722814099883,-181.81,9.935e-05,2]
[334181587,1722814099932,-264.4694,9.957e-05,2]
[334181588,1722814099980,-374.77689865,0.0001,2]
[334181589,1722814100025,-250.0,0.00010013,2]
[334181590,1722814100069,-227.49,0.00010019,2]
[334181591,1722814100113,-668.44,0.00010023,2]
[334181592,1722814100158,-5898.82785134,0.00010026,2]
[334181593,1722814100204,-8365.81414999,0.00010026,2]
[334181594,1722814100277,-3390.54462513,0.00010026,2]
[334181595,1722814100356,1256.27829447,8.412e-05,2]
[334181599,1722814149875,-653.71514348,0.00010026,2]
[334181602,1722814156634,150.0,8.412e-05,2]
[334181603,1722814156657,77.61995131,8.412e-05,2]
[334181614,1722814198974,150.0,8.219e-05,2]
[334181615,1722814198999,157.4211554,8.219e-05,2]
[334181616,1722814199023,150.0,8.219e-05,2]
[334181617,1722814199051,325.7588446,8.219e-05,2]
[334181618,1722814220271,-222.82763319,9.759e-05,2]
[334181619,1722814220983,-184.45236681,9.759e-05,2]
[334181620,1722814227197,-193.1675845,9.759e-05,2]
[334181637,1722814232116,-37.0524155,9.759e-05,2]
[334181638,1722814232125,-898.40986272,9.932e-05,2]
[334181639,1722814232135,-4482.38431422,0.00010026,2]
[334181640,1722814232178,-1108.71391584,0.00010026,2]
[334181641,1722814232188,-579.0,0.00010032,2]
[334181642,1722814232197,-300.0,0.00010056,2]
[334181643,1722814232206,-6694.10186694,0.00010057,2]
[334181644,1722814232226,-1680.21209364,0.00010057,2]
[334181645,1722814232237,-165.03603942,0.00010057,2]
[334181646,1722814232246,-204.98,0.00010138,2]
[334181647,1722814232261,-499.99,0.00010138,2]
[334181648,1722814232270,-546.38573207,0.00010196,2]
[334181649,1722814232279,-227.61995131,0.00010196,2]
[334181650,1722814232288,-947.92262883,0.00010196,2]
[334181651,1722814232297,-227.61995131,0.00010196,2]
[334181652,1722814232307,-150.0,0.00010441,2]
[334181653,1722814232316,-783.18,0.00010465,2]
[334181654,1722814232326,-147.26569706,0.00010475,2]
[334181655,1722814232338,-2.73430294,0.00010475,2]
[334181656,1722814232352,-150.0,0.0001048,2]
[334181657,1722814232364,-200.0,0.000105,3]
[334181659,1722814232373,-1450.7591046,0.000105,2]
[334181662,1722814232388,-370.9508954,0.000105,2]
[334181664,1722814232398,-150.0,0.0001058,2]
[334181666,1722814232407,-127.17793081,0.0001058,2]
[334181668,1722814238170,-237.47206919,0.0001058,2]
[334181669,1722814238179,-160.09286149,0.000106,3]
[334181671,1722814238291,-339.90713851,0.000106,3]
[334181672,1722814238301,-150.0,0.00010622,2]
[334181673,1722814238310,-150.0,0.00010629,2]
[334181674,1722814238319,-150.0,0.00010629,2]
[334181675,1722814238329,-150.0,0.00010646,2]
[334181676,1722814238339,-1500.0,0.00010682,2]
[334181677,1722814238351,-800.0,0.000107,3]
[334181679,1722814238362,-7024.40879528,0.000108,2]
[334181681,1722814238371,-1100.0,0.000108,3]
[334181683,1722814238380,-3672.0765,0.000108,2]
[334181685,1722814238390,-300.0,0.0001083,2]
[334181687,1722814238399,-1005.10451575,0.00010835,2]
[334181689,1722814238408,-300.0,0.00010883,2]
[334181691,1722814238418,-150.0,0.00010889,2]
[334181706,1722814238525,-437.94,0.0001089,2]
[334181709,1722814238586,-437.94,0.0001089,2]
[334181711,1722814238595,-437.94,0.0001089,2]
[334181713,1722814238605,-437.94,0.0001089,2]
[334181715,1722814238614,-437.94,0.0001089,2]
[334181717,1722814238623,-437.94,0.0001089,2]
[334181719,1722814238633,-437.94,0.0001089,2]
[334181721,1722814238642,-437.94,0.0001089,2]
[334181722,1722814238651,-437.94,0.0001089,2]
[334181724,1722814238660,-437.94,0.0001089,2]
[334181726,1722814238670,-437.94,0.0001089,2]
[334181728,1722814238680,-437.94,0.0001089,2]
[334181730,1722814238689,-437.94,0.0001089,2]
[334181732,1722814238698,-437.94,0.0001089,2]
[334181734,1722814238707,-437.94,0.0001089,2]
[334181736,1722814238716,-437.94,0.0001089,2]
[334181738,1722814238727,-437.94,0.0001089,2]
[334181740,1722814238735,-437.94,0.0001089,2]
[334181742,1722814238745,-437.94,0.0001089,2]
[334181743,1722814238754,-437.94,0.0001089,2]
[334181745,1722814238763,-246.72234132,0.0001089,2]
[334181821,1722814239659,-191.21765868,0.0001089,2]
[334181823,1722814239669,-437.94,0.0001089,2]
[334181825,1722814239680,-437.94,0.0001089,2]
[334181827,1722814239689,-437.94,0.0001089,2]
[334181830,1722814239700,-437.94,0.0001089,2]
[334181832,1722814239709,-437.94,0.0001089,2]
[334181835,1722814239720,-437.94,0.0001089,2]
[334181837,1722814239730,-437.94,0.0001089,2]
[334181840,1722814239739,-437.94,0.0001089,2]
[334181841,1722814239749,-437.94,0.0001089,2]
[334181844,1722814239759,-54421.71559197,0.000109,2]
[334181846,1722814239772,-3597.56620416,0.000109,2]
[334181849,1722814239796,-300.11965555,0.000109,2]
[334181852,1722814239809,-1522.57839701,0.000109,2]
[334181855,1722814239834,-876.62669098,0.000109,2]
[334181857,1722814239845,-2789.19999901,0.000109,2]
[334181859,1722814239858,-6006.19141486,0.000109,2]
[334181929,1722814240515,-610.72907387,0.000109,2]
[334181932,1722814240527,-1023.25,0.000109,2]
[334182328,1722814244733,-2513.13879565,0.000109,2]
[334182336,1722814245063,-500.0,0.000109,2]
[334182338,1722814245074,-576.99,0.000109,2]
[334182452,1722814246376,-678.75,0.000109,2]
[334182454,1722814246390,-888.15322301,0.000109,2]
[334182460,1722814246451,-1014.8698506,0.000109,2]
[334182462,1722814246463,-690.36,0.000109,2]
[334182463,1722814246475,-7801.0,0.000109,2]
[334182464,1722814246521,-302.0,0.000109,2]
[334182470,1722814246590,-1819.32821834,0.000109,2]
[334182472,1722814246601,-1468.08260012,0.000109,2]
[334182479,1722814246663,-2655.92611903,0.000109,2]
[334182481,1722814246674,-1578.49314389,0.000109,2]
[334182511,1722814496461,-23900.0,9.828e-05,2]
[334182512,1722814496524,-100.0,9.846e-05,2]
[334182513,1722814496651,-299.5524155,9.846e-05,2]
[334182514,1722814580848,-250.0,9.82e-05,2]
[334182515,1722814580875,-661.0,9.823e-05,2]
[334182516,1722814580901,-438.28,9.824e-05,2]
[334182517,1722814580929,-137.2475845,9.846e-05,2]
[334182518,1722814580955,-450.0,9.846e-05,2]
[334182519,1722814580981,-227.61995131,9.846e-05,2]
[334182520,1722814581016,-227.61995131,9.846e-05,2]
[334182521,1722814581043,-3608.23251288,9.846e-05,2]
[334182522,1722814749075,775.93,8.219e-05,2]
[334182524,1722814804661,150.0,8.219e-05,2]
[334182525,1722814804688,77.61995131,8.219e-05,2]
[334182526,1722814816905,-193.51,9.757e-05,2]
[334182527,1722814845117,-570.56,9.757e-05,2]
[334182534,1722814877719,-842.46067646,9.757e-05,2]
[334182535,1722814878971,-193.31890216,9.757e-05,2]
[334182553,1722815011028,222.53047007,9.678e-05,2]
[334182554,1722815011051,150.0,9.678e-05,2]
[334182555,1722815011080,127.46952993,9.678e-05,2]
[334182556,1722815011430,500.0,9.678e-05,2]
[334182557,1722815012454,500.0,9.678e-05,2]
[334182558,1722815012876,500.0,9.679e-05,2]
[334182559,1722815013230,150.0,9.679e-05,2]
[334182560,1722815013258,350.0,9.679e-05,2]
[334182561,1722815013568,150.0,9.679e-05,2]
[334182562,1722815013598,150.0,9.679e-05,2]
[334182563,1722815013627,200.0,9.679e-05,2]
[334182564,1722815013983,150.0,9.679e-05,2]
[334182565,1722815014107,150.0,9.679e-05,2]
[334182566,1722815014131,150.0,9.679e-05,2]
[334182567,1722815014154,50.0,9.679e-05,2]
[334182568,1722815014277,100.0,9.679e-05,2]
[334182569,1722815014299,222.82763319,9.679e-05,2]
[334182570,1722815014322,150.0,9.679e-05,2]
[334182571,1722815014348,27.17236681,9.679e-05,2]
[334182572,1722815014684,500.0,9.679e-05,2]
[334182573,1722815015064,500.0,9.679e-05,2]
[334182574,1722815019884,-182.25,9.756e-05,2]
[334182575,1722815019909,-227.61995131,9.757e-05,2]
[334182576,1722815019936,-961.890584,9.757e-05,2]
[334182577,1722815019961,-300.0,9.76e-05,2]
[334182578,1722815019989,-23900.0,9.761e-05,2]
[334182579,1722815020014,-428.23946469,9.862e-05,2]
[334182580,1722815188572,200.96988889,9.514e-05,2]
[334182581,1722815223681,150.0,9.514e-05,2]
[334182582,1722815223704,77.61995131,9.514e-05,2]
[334182583,1722815256613,150.0,8.219e-05,2]
[334182584,1722815256635,150.0,8.219e-05,2]
[334182585,1722815256660,150.0,8.219e-05,2]
[334182586,1722815256680,150.0,8.219e-05,2]
[334182587,1722815256703,137.13,8.219e-05,2]
[334182588,1722815327703,227.61995131,8.219e-05,2]
[334182589,1722815411681,-193.51,9.731e-05,2]
[334182590,1722815411712,-543.55,9.751e-05,2]
[334182591,1722815411745,-2881.61060455,9.751e-05,2]
[334182592,1722815411775,-193.17,9.751e-05,2]
[334182593,1722815411804,-882.11,9.753e-05,2]
[334182594,1722815411832,-209.76938948,9.757e-05,2]
[334182595,1722815411861,-250.0,9.757e-05,2]
[334182596,1722815411890,-407.28,9.757e-05,2]
[334182597,1722815411917,-703.18,9.759e-05,2]
[334182598,1722815411945,-223.79724312,9.762e-05,2]
[334182599,1722815427680,150.0,8.219e-05,2]
[334182600,1722815427704,77.61995131,8.219e-05,2]
[334182602,1722815432887,-450.0,9.761e-05,2]
[334182609,1722815438001,-6201.5181,9.761e-05,2]
[334182610,1722815439583,-13697.1119,9.761e-05,2]
[334182611,1722815439594,-276.19275688,9.762e-05,2]
[334182612,1722815439605,-345.0682,9.762e-05,2]
[334182613,1722815439616,-297.6,0.00010463,2]
[334182614,1722815439626,-737.13,0.00010463,2]
[334182615,1722815439636,-522.5,0.0001069,2]
[334182616,1722815439646,-522.5,0.0001069,2]
[334182617,1722815439656,-522.5,0.0001069,2]
[334182618,1722815439666,-522.5,0.0001069,2]
[334182619,1722815439676,-522.5,0.0001069,2]
[334182620,1722815439686,-522.5,0.0001069,2]
[334182621,1722815439696,-522.5,0.0001069,2]
[334182622,1722815439706,-522.5,0.0001069,2]
[334182623,1722815439719,-522.5,0.0001069,2]
[334182624,1722815439729,-522.5,0.0001069,2]
[334182625,1722815439739,-522.5,0.0001069,2]
[334182626,1722815439752,-522.5,0.0001069,2]
[334182627,1722815439763,-522.5,0.0001069,2]
[334182628,1722815439772,-1286.3079,0.000107,2]
[334182629,1722815439782,-13531.96680775,0.000107,2]
[334182630,1722815439796,-2001.81695,0.000107,2]
[334182631,1722815439817,-4154.37059205,0.000107,2]
[334182632,1722815439829,-311.8456502,0.000107,2]
[334182633,1722815439839,-4467.4266,0.000107,2]
[334182634,1722815439848,-35268.72873548,0.000107,2]
[334182635,1722815439927,-53397.07706452,0.000107,2]
[334182637,1722815439937,-532.0995654,0.000107,2]
[334182639,1722815439947,-522.5,0.00010702,2]
[334182641,1722815439957,-150.0,0.00010709,2]
[334182643,1722815439967,-150.0,0.00010711,2]
[334182645,1722815439977,-150.0,0.00010711,2]
[334182647,1722815439986,-351.12,0.00010712,2]
[334182649,1722815439999,-150.0,0.00010713,2]
[334182651,1722815440009,-150.0,0.00010714,2]
[334182653,1722815440018,-150.0,0.00010715,2]
[334182655,1722815440028,-150.0,0.00010716,2]
[334182657,1722815440039,-999.99,0.00010721,2]
[334182660,1722815440049,-150.0,0.00010721,2]
[334182663,1722815440058,-150.0,0.00010722,2]
[334182665,1722815440067,-150.0,0.00010725,2]
[334182667,1722815440077,-150.0,0.00010731,2]
[334182669,1722815440086,-300.0,0.00010732,2]
[334182671,1722815440096,-150.0,0.00010732,2]
[334182673,1722815440106,-150.0,0.00010734,2]
[334182674,1722815440115,-150.0,0.00010734,2]
[334182677,1722815440125,-150.0,0.00010737,2]
[334182679,1722815440136,-522.5,0.00010737,2]
[334182680,1722815440145,-300.0,0.0001074,2]
[334182683,1722815440156,-1500.0,0.00010743,2]
[334182685,1722815440165,-150.0,0.00010747,2]
[334182687,1722815440175,-150.0,0.00010749,2]
[334182689,1722815440184,-150.0,0.00010749,2]
[334182691,1722815440194,-150.0,0.00010752,2]
[334182693,1722815440203,-150.0,0.00010753,2]
[334182695,1722815440213,-150.0,0.00010754,2]
[334182697,1722815440222,-150.0,0.00010755,2]
[334182698,1722815440232,-150.0,0.00010757,2]
[334182700,1722815440242,-150.0,0.00010759,2]
[334182702,1722815440255,-150.0,0.0001076,2]
[334182704,1722815440265,-150.0,0.00010761,2]
[334182707,1722815440274,-150.0,0.00010761,2]
[334182709,1722815440283,-150.0,0.00010763,2]
[334182711,1722815440293,-150.0,0.00010766,2]
[334182713,1722815440303,-150.0,0.00010768,2]
[334182715,1722815440313,-494.89548425,0.00010768,2]
[334182717,1722815440323,-150.0,0.00010772,2]
[334182719,1722815440333,-522.5,0.00010775,2]
[334182721,1722815440343,-150.0,0.00010775,2]
[334182722,1722815440352,-150.0,0.00010776,2]
[334182724,1722815440362,-150.0,0.00010779,2]
[334182726,1722815440372,-1500.0,0.00010779,2]
[334182728,1722815440382,-522.5,0.00010779,2]
[334182730,1722815440391,-150.0,0.00010781,2]
[334182732,1722815440401,-150.0,0.00010781,2]
[334182734,1722815440412,-150.0,0.00010785,2]
[334182736,1722815440421,-150.0,0.00010785,2]
[334182738,1722815440432,-150.0,0.00010785,2]
[334182740,1722815440443,-1500.0,0.00010785,2]
[334182742,1722815440453,-150.0,0.00010787,2]
[334182744,1722815440463,-150.0,0.00010788,2]
[334182746,1722815440472,-4411.94057484,0.00010789,2]
[334182748,1722815440482,-522.5,0.0001079,2]
[334182750,1722815440491,-522.5,0.0001079,2]
[334182752,1722815440504,-522.5,0.0001079,2]
[334182754,1722815440514,-522.5,0.0001079,2]
[334182756,1722815440524,-522.5,0.0001079,2]
[334182758,1722815440534,-522.5,0.0001079,2]
[334182760,1722815440545,-522.5,0.0001079,2]
[334182762,1722815440554,-522.5,0.0001079,2]
[334182764,1722815440564,-522.5,0.0001079,2]
[334182766,1722815440574,-522.5,0.0001079,2]
[334182768,1722815440584,-522.5,0.0001079,2]
[334182770,1722815440594,-522.5,0.0001079,2]
[334182806,1722815440943,-522.5,0.0001079,2]
[334182808,1722815440955,-150.0,0.00010791,2]
[334182810,1722815440965,-150.0,0.00010792,2]
[334182813,1722815440975,-1500.0,0.00010795,2]
[334182815,1722815440987,-3745.341,0.000108,2]
[334182817,1722815440998,-2072.4802,0.000108,2]
[334182819,1722815441008,-17008.7328,0.000108,2]
[334182821,1722815441018,-19721.30970932,0.000108,2]
[334182864,1722815441462,-16913.79555794,0.000108,2]
[334182865,1722815441474,-986.12807555,0.000108,2]
[334182915,1722815441992,-5273.98098731,0.000108,2]
[334182917,1722815442004,-2170.19664357,0.000108,2]
[334182923,1722815442048,-115904.15422631,0.000108,2]
[334182925,1722815442057,-150.0,0.000108,2]
[334182927,1722815442067,-150.0,0.00010801,2]
[334182929,1722815442076,-150.0,0.00010803,2]
[334182931,1722815442086,-150.0,0.00010805,2]
[334182933,1722815442096,-150.0,0.00010805,2]
[334182935,1722815442105,-300.0,0.00010805,2]
[334182937,1722815442115,-150.0,0.00010807,2]
[334182939,1722815442124,-150.0,0.00010808,2]
[334182941,1722815442134,-150.0,0.00010808,2]
[334182943,1722815442143,-150.0,0.00010809,2]
[334182945,1722815442153,-150.0,0.00010809,2]
[334182947,1722815442162,-150.0,0.0001081,2]
[334182949,1722815442172,-150.0,0.00010812,2]
[334182951,1722815442182,-150.0,0.00010813,2]
[334182953,1722815442192,-300.0,0.00010814,2]
[334182955,1722815442201,-1500.0,0.00010814,2]
[334182957,1722815442211,-150.0,0.00010818,2]
[334182959,1722815442220,-150.0,0.0001082,2]
[334182961,1722815442229,-150.0,0.00010822,2]
[334182963,1722815442239,-150.0,0.00010823,2]
[334182965,1722815442250,-150.0,0.00010823,2]
[334182967,1722815442260,-150.0,0.00010825,2]
[334182969,1722815442269,-150.0,0.0001083,2]
[334182971,1722815442279,-150.0,0.00010831,2]
[334182973,1722815442288,-150.0,0.00010833,2]
[334182975,1722815442298,-1500.0,0.00010834,2]
[334182977,1722815442307,-150.0,0.00010835,2]
[334182979,1722815442317,-150.0,0.00010838,2]
[334182981,1722815442326,-300.0,0.00010839,2]
[334182983,1722815442336,-150.0,0.00010839,2]
[334182985,1722815442346,-150.0,0.0001084,2]
[334182987,1722815442355,-1500.0,0.00010844,2]
[334182989,1722815442365,-150.0,0.00010845,2]
[334182991,1722815442375,-150.0,0.00010845,2]
[334182993,1722815442384,-150.0,0.00010848,2]
[334182995,1722815442393,-150.0,0.0001085,2]
[334182997,1722815442403,-150.0,0.00010852,2]
[334182999,1722815442412,-150.0,0.00010852,2]
[334183001,1722815442422,-150.0,0.00010853,2]
[334183003,1722815442432,-150.0,0.00010854,2]
[334183005,1722815442442,-150.0,0.00010855,2]
[334183007,1722815442451,-150.0,0.00010856,2]
[334183009,1722815442461,-150.0,0.00010856,2]
[334183011,1722815442470,-1500.0,0.00010857,2]
[334183013,1722815442480,-1919.64433,0.0001086,2]
[334183015,1722815442490,-150.0,0.00010862,2]
[334183016,1722815442503,-150.0,0.00010863,2]
[334183018,1722815442517,-150.0,0.00010863,2]
[334183020,1722815442527,-150.0,0.00010864,2]
[334183023,1722815442537,-150.0,0.00010869,2]
[334183024,1722815442547,-150.0,0.0001087,2]
[334183026,1722815442556,-150.0,0.00010871,2]
[334183028,1722815442566,-150.0,0.00010873,2]
[334183030,1722815442575,-150.0,0.00010875,2]
[334183032,1722815442585,-300.0,0.00010878,2]
[334183034,1722815442595,-300.19300008,0.0001088,2]
[334183036,1722815442604,-150.0,0.00010881,2]
[334183038,1722815442614,-150.0,0.00010882,2]
[334183040,1722815442623,-150.0,0.00010886,2]
[334183042,1722815442633,-150.0,0.00010887,2]
[334183044,1722815442643,-300.0,0.00010891,2]
[334183046,1722815442653,-150.0,0.00010891,2]
[334183048,1722815442662,-150.0,0.00010893,2]
[334183050,1722815442673,-150.0,0.00010893,2]
[334183052,1722815442682,-150.0,0.00010898,2]
[334183054,1722815442692,-1786.0,0.00010899,2]
[334183056,1722815442702,-181.65481635,0.00010899,2]
[334183058,1722815442712,-343.1705514,0.00010899,2]
[334183060,1722815442722,-181.65481635,0.00010899,2]
[334183062,1722815442734,-181.65481635,0.000109,2]
[334183064,1722815442743,-181.65481635,0.000109,2]
[334183066,1722815442756,-2233.21503504,0.000109,2]
[334183068,1722815442766,-247.952683,0.000109,2]
[334183070,1722815442777,-2000.0,0.000109,2]
[334183072,1722815442786,-200.0,0.000109,2]
[334183074,1722815442797,-174.77858731,0.000109,2]
[334183076,1722815442806,-188.49488975,0.000109,2]
[334183078,1722815442816,-150.0,0.000109,2]
[334183079,1722815442825,-150.0,0.000109,2]
[334183081,1722815442834,-299.15384255,0.000109,2]
[334183083,1722815442844,-181.65481635,0.000109,2]
[334183085,1722815442853,-174.64041295,0.000109,2]
[334183086,1722815442863,-186.60239526,0.000109,2]
[334183088,1722815442872,-880.42743273,0.000109,2]
[334183090,1722815442881,-374.18677131,0.000109,2]
[334183091,1722815442891,-1919.64433,0.000109,2]
[334183093,1722815442901,-1919.64433,0.000109,2]
[334183095,1722815442911,-673.22878192,0.000109,2]
[334183097,1722815442920,-1500.0,0.00010904,2]
[334183099,1722815442929,-150.0,0.00010905,2]
[334183101,1722815442938,-150.0,0.00010907,2]
[334183102,1722815442947,-300.0,0.00010908,2]
[334183104,1722815442956,-150.0,0.00010909,2]
[334183106,1722815442965,-150.0,0.00010914,2]
[334183108,1722815442974,-150.0,0.00010918,2]
[334183110,1722815442983,-150.0,0.00010926,2]
[334183111,1722815442992,-1500.0,0.00010927,2]
[334183113,1722815443009,-150.0,0.00010929,2]
[334183115,1722815443018,-150.0,0.0001093,2]
[334183117,1722815443027,-1919.64433,0.0001093,2]
[334183119,1722815443036,-150.0,0.00010934,2]
[334183120,1722815443046,-150.0,0.00010934,2]
[334183122,1722815443055,-1500.0,0.00010936,2]
[334183124,1722815443064,-300.0,0.00010937,2]
[334183126,1722815443074,-150.0,0.00010937,2]
[334183128,1722815443083,-150.0,0.00010938,2]
[334183129,1722815443092,-150.0,0.00010939,2]
[334183131,1722815443101,-150.0,0.0001094,2]